[Event "CZE-ch U12 Open 2023"]
[Site "Teplice"]
[Date "2023.03.11"]
[Round "1.8"]
[White "Sochor, Antonin"]
[Black "Krisica, Lukas"]
[Result "1-0"]
[Annotator "NA RC COMBH"]
[ECO "A46"]
[WhiteElo "1574"]
[BlackElo "1342"]
[PlyCount "63"]
[EventDate "2023.03.09"]
[EventType "swiss"]
[EventCountry "CZE"]
[SourceTitle "playchess.com"]
[Source "ChessBase"]
[SourceQuality "1"]
[TimeControl "40/5400+30:1800+30"]

1. d4 {[%emt 0:00:07]} Nf6 {[%emt 0:01:20]} 2. Nf3 {[%emt 0:00:19]} e6 {[%emt 0:01:31]} 3. Bf4 {[%emt 0:00:18]} b6 {[%emt 0:01:09]} 4. e3 {[%emt 0:00:38]} Bb7 {[%emt 0:00:59]} 5. c4 {[%emt 0:00:35]} Bb4+ {[%emt 0:02:04]} 6. Nc3 {[%emt 0:01:27]} Ne4 {[%emt 0:02:05]} 7. Rc1 {[%emt 0:00:49]} Bxc3+ {[%emt 0:04:51]} 8. bxc3 {[%emt 0:00:23]} d6 {[%emt 0:01:57]} 9. Be2 {[%emt 0:02:21]} f5 {[%emt 0:01:59]} 10. O-O {[%emt 0:01:55]} g5 {[%emt 0:01:50]} 11. Bg3 {[%emt 0:06:10]} h5 {[%emt 0:03:15]} 12. h3 {[%emt 0:03:24]} g4 {[%emt 0:02:32]} 13. Bh4 {[%emt 0:05:26]} Qd7 {[%emt 0:02:25]} 14. Ng5 {[%emt 0:03:23]} Nxg5 {[%emt 0:00:08]} 15. Bxg5 {[%emt 0:02:05]} Qg7 {[%emt 0:02:49]} 16. h4 {[%emt 0:02:27]} Nd7 {[%emt 0:02:12]} 17. f3 {[%emt 0:02:00]} Nf6 {[%emt 0:06:13]} 18. Qa4+ {[%emt 0:03:12]} Qd7 {[%emt 0:00:59]} 19. Qb3 {[%emt 0:00:24]} Nh7 {[%emt 0:00:50]} 20. Bf4 {[%emt 0:02:03]} gxf3 {[%emt 0:00:28]} 21. Bxf3 {[%emt 0:01:28]} Bxf3 {[%emt 0:00:47]} 22. Rxf3 {[%emt 0:00:28]} Rg8 {[%emt 0:00:21]} 23. c5 {[%emt 0:02:16]} dxc5 {[%emt 0:03:08]} 24. dxc5 {[%emt 0:15:22]} O-O-O {[%emt 0:01:19]} 25. Rf2 {[%emt 0:01:06]} Nf6 {[%emt 0:01:37]} 26. cxb6 {[%emt 0:05:14]} axb6 {[%emt 0:01:21]} 27. Qc4 {[%emt 0:04:10]} Ne4 {[%emt 0:09:56]} 28. Qa6+ {[%emt 0:01:05]} Kb8 {[%emt 0:00:02]} 29. Qxb6+ {[%emt 0:00:21]} Kc8 {[%emt 0:01:27]} 30. Qa6+ {[%emt 0:00:16]} Kb8 {[%emt 0:00:31]} 31. Rb1+ {[%emt 0:00:18]} Qb5 {[%emt 0:00:08]} 32. Rxb5# {[%emt 0:00:18]} 1-0

[Event "CZE-ch U12 Open 2023"]
[Site "Teplice"]
[Date "2023.03.11"]
[Round "1.9"]
[White "Sudrich, Radek"]
[Black "Boff, Ondrej"]
[Result "0-1"]
[Annotator "TA"]
[ECO "B32"]
[WhiteElo "2054"]
[BlackElo "1561"]
[PlyCount "98"]
[EventDate "2023.03.09"]
[EventType "swiss"]
[EventCountry "CZE"]
[SourceTitle "playchess.com"]
[Source "ChessBase"]
[SourceQuality "1"]
[TimeControl "40/5400+30:1800+30"]

{[%evp 19,97,17,24,-10,-9,-16,-19,-18,-15,-17,0,0,0,0,0,0,0,0,0,0,0,-245,-244,-247,-238,-231,-227,-286,-285,-289,-285,-299,-270,-279,-279,-294,-295,-299,-296,-337,-289,-284,-284,-329,-293,-272,-263,-254,-242,-584,-573,-606,-563,-707,-706,-1982,-1895,-12825,-6034,-5514,-5539,-29983,-29984,-29983,-12840,-29987,-29988,-29988,-29989,-29988,-29989,-29989,-29990,-29990,-29991,-29997,-29994,-29994,-29995,-29999]} 1. e4 {[%emt 0:00:04]} c5 {[%emt 0:00:10]} 2. Nf3 {[%emt 0:00:35]} Nc6 {[%emt 0:00:24]} 3. d4 {[%emt 0:01:18]} cxd4 {[%emt 0:00:22]} 4. Nxd4 {[%emt 0:01:19]} e5 {[%emt 0:00:14]} 5. Nb3 {[%emt 0:03:34]} Nf6 {[%emt 0:00:58]} 6. Bg5 {[%emt 0:03:38]} Be7 {[%emt 0:01:22]} 7. Bxf6 {[%emt 0:00:17]} Bxf6 {[%emt 0:00:23]} 8. Nc3 {[%emt 0:01:44]} O-O {[%emt 0:01:54]} 9. Bc4 {[%emt 0:03:41]} a6 {[%emt 0:01:51]} 10. O-O {[%emt 0:01:16]} d6 {[%emt 0:00:59]} 11. Bd5 {[%emt 0:01:15] B94: Sicilian Najdorf: 6 Bg5 Nbd7.} Be6 {[%emt 0:02:25]} 12. Bxe6 {[%emt 0:09:20]} fxe6 {[%emt 0:00:21]} 13. Qg4 {[%emt 0:00:24] The position is equal.} Qe7 {[%emt 0:01:59] [#]} 14. Ne2 $146 {[%emt 0:04:17]} ({Predecessor:} 14. Rad1 Rac8 15. g3 Kh8 16. h4 Nd4 17. Rd2 b5 18. Nxd4 exd4 19. Ne2 e5 20. c3 {1-0 Korchmar,V (2450)-Rasulov,V (2478) Titled Tuesday intern op 18th May blitz 2021 (8)}) 14... d5 {[%emt 0:02:05]} 15. Rad1 {[%emt 0:04:21]} Rfd8 {[%emt 0:03:22]} 16. exd5 {[%emt 0:01:11]} exd5 {[%emt 0:00:43]} 17. Ng3 {[%emt 0:00:27]} e4 {[%emt 0:09:22]} 18. Nf5 {[%emt 0:01:38]} Qc7 {[%emt 0:05:20]} 19. Nc5 {[%emt 0:02:30] A dynamic duo of knights.} Ne5 {[%emt 0:05:45][%mdl 64] [#] Discovered Attack} 20. Nh6+ {[%emt 0:11:06] Black keeps a firm grip on the game.} (20. Ne6 $11 Qb6 21. Qh3) 20... Kh8 $19 {[%emt 0:01:52]} 21. Ne6 {[%emt 0:01:14]} Qe7 {[%emt 0:08:26]} ({Worse is} 21... gxh6 22. Nxc7 Nxg4 23. Nxa8 $15) (21... Qxc2 22. Nxd8 Rxd8 23. Qe6 $14) 22. Nxd8 {[%emt 0:01:54]} Rxd8 {[%emt 0:01:00]} ({Weaker is} 22... Nxg4 23. Ndf7+ $16) 23. Nf5 {[%emt 0:04:07]} Nxg4 {[%emt 0:00:49][%mdl 64] [#] Discovered Attack} 24. Nxe7 {[%emt 0:00:04]} Bxe7 {[%emt 0:00:05]} 25. h3 {[%emt 0:00:12]} Nf6 {[%emt 0:01:04]} 26. Rfe1 {[%emt 0:03:13]} Kg8 {[%emt 0:00:16]} 27. Re3 {[%emt 0:00:24]} Rc8 {[%emt 0:00:40]} 28. c3 {[%emt 0:01:23]} Kf7 {[%emt 0:00:19]} 29. g4 {[%emt 0:00:34]} Rd8 {[%emt 0:01:24]} 30. Re2 {[%emt 0:00:42]} g5 {[%emt 0:00:48]} 31. Kg2 {[%emt 0:01:27]} Ke6 {[%emt 0:00:34]} 32. f3 {[%emt 0:02:07]} Rd6 {[%emt 0:03:59]} 33. h4 {[%emt 0:01:13]} gxh4 {[%emt 0:01:18]} 34. g5 $2 {[%emt 0:00:03]} (34. fxe4 {is a better chance.} dxe4 35. Rxd6+ Kxd6 36. g5) 34... Nh5 {[%emt 0:00:37] Hoping for ...Nf4+.} 35. Kh2 {[%emt 0:00:44]} Nf4 {[%emt 0:00:47]} 36. Re3 {[%emt 0:00:12]} Kf5 {[%emt 0:01:15]} 37. fxe4+ {[%emt 0:00:24]} dxe4 {[%emt 0:00:18]} (37... Kxg5 $2 {perishes.} 38. exd5 Rd7 39. Rg1+ Kf6 40. Rf1 $19) 38. Rde1 {[%emt 0:00:15]} Rd2+ {[%emt 0:00:26]} 39. Kh1 {[%emt 0:00:34]} Ng2 {[%emt 0:01:17]} 40. Rf1+ {[%emt 0:00:16]} Ke5 {[%emt 0:01:43]} 41. Rh3 {[%emt 0:30:54]} e3 {[%emt 0:30:51] ( -> ...e2)} 42. Rff3 {[%emt 0:00:30]} e2 {[%emt 0:00:52] Black mates.} 43. Re3+ {[%emt 0:00:18]} Nxe3 {[%emt 0:00:10]} 44. Rxe3+ {[%emt 0:00:06]} Kf4 {[%emt 0:00:11]} 45. Rxe7 {[%emt 0:00:14] KR-KR} Rd1+ {[%emt 0:00:03]} 46. Kg2 {[%emt 0:00:07]} e1=Q {[%emt 0:00:07][%csl Gf4,Gh4][%cal Re1g3]} 47. Rf7+ {[%emt 0:00:07]} Kxg5 {[%emt 0:00:14][%csl Gh4][%cal Re1g3]} 48. Rg7+ {[%emt 0:00:11]} Kh6 {[%emt 0:00:05]} 49. Rxb7 {[%emt 0:00:07]} Qg3# {[%emt 0:00:12] Weighted Error Value: White=0.94/Black=0.09 (flawless)} 0-1

[Event "CZE-ch U12 Open 2023"]
[Site "Teplice"]
[Date "2023.03.11"]
[Round "1.10"]
[White "Policar, Martin"]
[Black "Kupka, Alexandr"]
[Result "1-0"]
[Annotator "NA RC COMBH"]
[ECO "C68"]
[WhiteElo "1552"]
[BlackElo "1220"]
[PlyCount "95"]
[EventDate "2023.03.09"]
[EventType "swiss"]
[EventCountry "CZE"]
[SourceTitle "playchess.com"]
[Source "ChessBase"]
[SourceQuality "1"]
[TimeControl "40/5400+30:1800+30"]

1. e4 {[%emt 0:00:04]} e5 {[%emt 0:00:08]} 2. Nf3 {[%emt 0:00:05]} Nc6 {[%emt 0:00:06]} 3. Bb5 {[%emt 0:00:04]} a6 {[%emt 0:00:17]} 4. Bxc6 {[%emt 0:00:05]} dxc6 {[%emt 0:00:14]} 5. d4 {[%emt 0:00:06]} exd4 {[%emt 0:00:59]} 6. Qxd4 {[%emt 0:00:08]} Qxd4 {[%emt 0:00:15]} 7. Nxd4 {[%emt 0:00:04]} Nf6 {[%emt 0:00:20]} 8. O-O {[%emt 0:01:46]} Bc5 {[%emt 0:01:00]} 9. c3 {[%emt 0:00:51]} O-O {[%emt 0:01:48]} 10. e5 {[%emt 0:01:41]} Nd5 {[%emt 0:03:00]} 11. Nb3 {[%emt 0:04:46]} Ba7 {[%emt 0:02:25]} 12. Bd2 {[%emt 0:04:14]} Be6 {[%emt 0:03:46]} 13. Na3 {[%emt 0:02:14]} Rfd8 {[%emt 0:03:16]} 14. Nc2 {[%emt 0:05:13]} Nb4 {[%emt 0:13:06]} 15. Nxb4 {[%emt 0:03:05]} Bxb3 {[%emt 0:00:17]} 16. Bg5 {[%emt 0:00:21]} Bc4 {[%emt 0:04:34]} 17. Bxd8 {[%emt 0:00:35]} Bxf1 {[%emt 0:03:06]} 18. Bxc7 {[%emt 0:00:15]} Rc8 {[%emt 0:08:18]} 19. Kxf1 {[%emt 0:02:00]} Rxc7 {[%emt 0:00:19]} 20. Rd1 {[%emt 0:00:22]} h6 {[%emt 0:01:21]} 21. Rd8+ {[%emt 0:00:34]} Kh7 {[%emt 0:00:18]} 22. Ke2 {[%emt 0:01:40]} Re7 {[%emt 0:01:06]} 23. f4 {[%emt 0:01:06]} g5 {[%emt 0:02:22]} 24. g3 {[%emt 0:02:07]} f6 {[%emt 0:01:13]} 25. Nd3 {[%emt 0:00:27]} Bg1 {[%emt 0:01:50]} 26. Kf1 {[%emt 0:02:13]} Bxh2 {[%emt 0:01:15]} 27. exf6 {[%emt 0:00:20]} Rf7 {[%emt 0:04:34]} 28. Kg2 {[%emt 0:00:22]} Bxg3 {[%emt 0:01:30]} 29. Kxg3 {[%emt 0:01:23]} gxf4+ {[%emt 0:00:17]} 30. Nxf4 {[%emt 0:00:21]} Rxf6 {[%emt 0:01:52]} 31. Rd7+ {[%emt 0:00:23]} Kg8 {[%emt 0:00:34]} 32. Rxb7 {[%emt 0:00:30]} Rd6 {[%emt 0:03:07]} 33. Kf3 {[%emt 0:00:32]} Rf6 {[%emt 0:01:32]} 34. Ke4 {[%emt 0:00:23]} Kf8 {[%emt 0:00:40]} 35. Ke5 {[%emt 0:00:51]} Rf7 {[%emt 0:00:25]} 36. Rxf7+ {[%emt 0:01:56]} Kxf7 {[%emt 0:00:07]} 37. b4 {[%emt 0:00:13]} Ke7 {[%emt 0:00:13]} 38. a4 {[%emt 0:00:54]} Kd7 {[%emt 0:00:24]} 39. c4 {[%emt 0:00:27]} Kc7 {[%emt 0:00:22]} 40. Ke6 {[%emt 0:00:13]} c5 {[%emt 0:00:38]} 41. b5 {[%emt 0:30:15]} Kb7 42. Kd6 {[%emt 0:00:24]} Kb6 {[%emt 0:32:22]} 43. bxa6 {[%emt 0:00:23]} Ka7 {[%emt 0:00:57]} 44. Kxc5 {[%emt 0:00:16]} Kb8 {[%emt 0:00:16]} 45. Kb6 {[%emt 0:00:16]} Ka8 {[%emt 0:00:16]} 46. a7 {[%emt 0:00:16]} h5 {[%emt 0:00:24]} 47. Nd5 {[%emt 0:00:09]} h4 {[%emt 0:00:24]} 48. Nc7# 1-0

[Event "CZE-ch U12 Open 2023"]
[Site "Teplice"]
[Date "2023.03.11"]
[Round "1.11"]
[White "Mazurek, Richard"]
[Black "Komarek, Tobias"]
[Result "0-1"]
[Annotator "NA RC COMBH"]
[ECO "B39"]
[WhiteElo "1137"]
[BlackElo "1515"]
[PlyCount "116"]
[EventDate "2023.03.09"]
[EventType "swiss"]
[EventCountry "CZE"]
[SourceTitle "playchess.com"]
[Source "ChessBase"]
[SourceQuality "1"]
[TimeControl "40/5400+30:1800+30"]

1. e4 {[%emt 0:00:05]} c5 {[%emt 0:00:07]} 2. Nf3 {[%emt 0:00:04]} Nc6 {[%emt 0:00:13]} 3. d4 {[%emt 0:00:07]} cxd4 {[%emt 0:00:07]} 4. Nxd4 {[%emt 0:00:04]} g6 {[%emt 0:00:10]} 5. c4 {[%emt 0:00:44]} Bg7 {[%emt 0:00:10]} 6. Be3 {[%emt 0:00:10]} Nf6 {[%emt 0:00:15]} 7. Nc3 {[%emt 0:00:51]} Ng4 {[%emt 0:00:15]} 8. Qxg4 {[%emt 0:06:15]} Nxd4 {[%emt 0:00:07]} 9. Qd1 {[%emt 0:02:12]} Ne6 {[%emt 0:00:10]} 10. Rc1 {[%emt 0:01:33]} O-O {[%emt 0:00:32]} 11. Be2 {[%emt 0:02:18]} d6 {[%emt 0:01:12]} 12. O-O {[%emt 0:00:21]} Bd7 {[%emt 0:00:13]} 13. b3 {[%emt 0:02:08]} Bc6 {[%emt 0:00:24]} 14. f3 {[%emt 0:00:43]} a5 {[%emt 0:01:37]} 15. Nd5 {[%emt 0:16:04]} Bxd5 {[%emt 0:00:18]} 16. cxd5 {[%emt 0:00:20]} Nc5 {[%emt 0:00:20]} 17. Kh1 {[%emt 0:09:28]} b6 {[%emt 0:01:02]} 18. Bb5 {[%emt 0:00:12]} Nd7 {[%emt 0:00:51]} 19. Bxd7 {[%emt 0:00:18]} Qxd7 {[%emt 0:00:09]} 20. Bxb6 {[%emt 0:00:11]} Qb5 {[%emt 0:00:29]} 21. Bd4 {[%emt 0:00:42]} Bxd4 {[%emt 0:00:53]} 22. Qxd4 {[%emt 0:00:05]} Rfc8 {[%emt 0:00:50]} 23. h3 {[%emt 0:01:25]} Rc5 {[%emt 0:00:52]} 24. Rfe1 {[%emt 0:01:05]} Rac8 {[%emt 0:03:09]} 25. Rxc5 {[%emt 0:02:38]} Rxc5 {[%emt 0:00:10]} 26. Qd2 {[%emt 0:02:33]} Qb4 {[%emt 0:00:45]} 27. Qe3 {[%emt 0:02:29]} Rc3 {[%emt 0:03:51]} 28. Qe2 {[%emt 0:03:08]} a4 {[%emt 0:02:28]} 29. bxa4 {[%emt 0:02:03]} Qxa4 {[%emt 0:00:09]} 30. Qb2 {[%emt 0:00:15]} Rc2 {[%emt 0:00:33]} 31. Qb8+ {[%emt 0:01:22]} Kg7 {[%emt 0:00:06]} 32. Qb3 {[%emt 0:00:26]} Qxa2 {[%emt 0:01:02]} 33. Qxa2 {[%emt 0:00:08]} Rxa2 {[%emt 0:00:07]} 34. Rb1 {[%emt 0:00:14]} Kf6 {[%emt 0:01:05]} 35. Kh2 {[%emt 0:00:23]} e6 {[%emt 0:00:31]} 36. Rb6 {[%emt 0:00:24]} Ke5 {[%emt 0:00:10]} 37. dxe6 {[%emt 0:02:02]} fxe6 {[%emt 0:00:56]} 38. f4+ {[%emt 0:04:30]} Kxf4 {[%emt 0:01:29]} 39. Rxd6 {[%emt 0:00:06]} Ke5 {[%emt 0:00:05]} 40. Rb6 {[%emt 0:00:17]} Ra4 {[%emt 0:00:12]} 41. Kg3 {[%emt 0:30:37]} Rxe4 {[%emt 0:30:11]} 42. Kf3 {[%emt 0:00:07]} Rd4 {[%emt 0:00:37]} 43. Ke3 {[%emt 0:00:24]} Rd5 {[%emt 0:00:09]} 44. Rb7 {[%emt 0:00:15]} h5 {[%emt 0:00:06]} 45. g4 {[%emt 0:00:21]} hxg4 {[%emt 0:00:30]} 46. hxg4 {[%emt 0:00:01]} Rd4 {[%emt 0:00:57]} 47. Rb5+ {[%emt 0:00:18]} Rd5 {[%emt 0:00:05]} 48. Rb6 {[%emt 0:00:20]} Kf6 {[%emt 0:01:16]} 49. Ke4 {[%emt 0:01:24]} Re5+ {[%emt 0:00:13]} 50. Kf4 {[%emt 0:00:18]} g5+ {[%emt 0:02:18]} 51. Kf3 {[%emt 0:00:01]} Rc5 {[%emt 0:00:17]} 52. Rb4 {[%emt 0:00:07]} Rc3+ {[%emt 0:00:11]} 53. Kg2 {[%emt 0:00:22]} Rd3 {[%emt 0:00:46]} 54. Kf2 {[%emt 0:00:17]} Ke5 {[%emt 0:00:39]} 55. Rb5+ {[%emt 0:00:10]} Rd5 {[%emt 0:00:18]} 56. Rb4 {[%emt 0:00:22]} Rd4 {[%emt 0:00:07]} 57. Rb5+ {[%emt 0:00:04]} Kf4 {[%emt 0:00:12]} 58. Rb6 {[%emt 0:00:38]} Re4 {[%emt 0:01:02]} 0-1